Cogmind - Beta 10.1 @@@ ROGUE MODE // 2020.10.14 @ 11:37:04 Player: Pimski Result: Destroyed by 8R-AWN with 8R-AWN's Boregun Performance ------------- Evolutions (0) 0 Regions Visited (3) 600 Robots Destroyed (34) 170 Value Destroyed (529) 529 Prototype IDs (28) 560 Alien Tech Used (0) 0 Bonus (-216) -216 TOTAL SCORE: 1643 Bonus ------- Follower Combat Kills 35 Aligned with FarCom 300 Friendly Fire -551 Cogmind --------- Core Integrity 0/250 Matter 149/300 Energy 100/100 System Corruption 0% Temperature Cool (0) Movement Treading (220) Ox3 Location -10/Exiles Parts ------- > --- POWER (1) -------- (None) > --- PROPULSION (2) --- Light Treads > --- UTILITY (2) ------ High-capacity Storage Unit High-capacity Storage Unit > --- WEAPON (2) ------- Assault Rifle Assault Rifle > --- INVENTORY (20) --- Wheel Large Storage Unit Large Storage Unit High-capacity Storage Unit Lightpack 2.0 Experimental Sensor Array Assault Rifle Light Assault Rifle Light Assault Rifle Light Assault Rifle Shotgun Grenade Launcher Rocket Launcher Deploy-a-Sentry Peak State ------------ > --- POWER ------------ Light Nuclear Core > --- PROPULSION ------- Light Treads Light Treads > --- UTILITY ---------- High-capacity Storage Unit High-capacity Storage Unit > --- WEAPON ----------- Assault Rifle Assault Rifle > --- INVENTORY -------- Light Nuclear Core Light Treads Light Treads Wheel Large Storage Unit Large Storage Unit High-capacity Storage Unit Lightpack 2.0 Experimental Sensor Array Assault Rifle Assault Rifle Assault Rifle Light Assault Rifle Light Assault Rifle Grenade Launcher Rocket Launcher Deploy-a-Sentry Deploy-a-Sentry Deploy-a-Sentry [Rating: 15] Favorites ----------- Power Light Nuclear Core Engine Light Ion Engine Power Core Light Nuclear Core Propulsion Light Treads Treads Light Treads Leg Aluminum Leg Utility High-capacity Storage Unit Device Improved Terrain Scanner Storage High-capacity Storage Unit Protection Core Shielding Weapon Assault Rifle Energy Gun Medium Laser Ballistic Gun Assault Rifle Launcher Grenade Launcher Build | -11 -10 -10 -10 ------- Run | Scr Mat Min Exi Slots Evolved . | . . . . Power . | . . . . Propulsion . | . . . . Utility . | . . . . Weapon . | . . . . Parts Attached 23 | 1 10 3 9 Power 2 | . 1 . 1 Engine . | . . . . Core 2 | . 1 . 1 Reactor . | . . . . Propulsion 5 | . 3 . 2 Treads 5 | . 3 . 2 Leg . | . . . . Wheel . | . . . . Hover . | . . . . Flight . | . . . . Utility 5 | 1 4 . . Device 1 | 1 . . . Storage 3 | . 3 . . Processor . | . . . . Hackware . | . . . . Protection 1 | . 1 . . Artifact . | . . . . Weapon 11 | . 2 3 6 Energy Gun 1 | . 1 . . Energy Cannon . | . . . . Ballistic Gun 7 | . 1 2 4 Ballistic Cannon . | . . . . Launcher 3 | . . 1 2 Special Weapon . | . . . . Impact Weapon . | . . . . Slashing Weapon . | . . . . Piercing Weapon . | . . . . Special Melee Weapon . | . . . . Unidentified Prototypes . | . . . . Parts Lost 10 | . 2 1 7 Power 3 | . 1 . 2 Propulsion 3 | . . . 3 Utility . | . . . . Weapon 4 | . 1 1 2 Highest Loss Streak 4 | . 2 1 4 Average Slot Usage (%) 96 | . 92 99 99 Engine 2 | . 5 . . Core 9 | . 1 14 13 Treads 27 | . 27 28 27 Device 1 | . 2 . . Storage 26 | . 23 28 28 Energy Gun 1 | . 4 . . Ballistic Gun 26 | . 23 27 27 Naked Turns . | . . . . Heaviest Build 73 | 12 73 73 73 Greatest Support 40 | 20 40 40 40 Greatest Overweight (x) 1 | . 1 1 1 Average Overweight (x) . | . . 1 1 Largest Inventory Capacity 20 | 6 20 20 20 Average Capacity 17 | 6 14 20 20 Most Carried 20 | 6 20 20 20 Average Carried 16 | 6 13 19 19 Final Capacity 20 | 6 20 20 20 Final Carried 20 | 6 20 20 15 Class Distribution -------------------- 80% | Hauler-Mutant 19% | Mutant Dominant Class ---------------- Hauler-Mutant | -10/Materials Hauler-Mutant | -10/Mines Hauler-Mutant | -10/Exiles Resources | -11 -10 -10 -10 ----------- Run | Scr Mat Min Exi Matter Collected 792 | 270 309 63 150 Remotely . | . . . . Salvage Created 772 | 82 613 57 20 Parts 51 | 6 42 3 . Haulers Intercepted 2 | . 2 . . Recyclers Shooed 1 | . . 1 . Parts Field Recycled . | . . . . Retrieved Matter . | . . . . Parts Self-Destructed . | . . . . Prevented . | . . . . Kills | -11 -10 -10 -10 ------- Run | Scr Mat Min Exi Combat Hostiles Destroyed 22 | . 15 4 3 Guns 16 | . 15 1 . AOE 6 | . . 3 3 Classes Destroyed 8 | 2 5 . 1 Worker 1 | . 1 . . Tunneler 2 | 2 . . . Hauler 2 | . 2 . . Recycler 1 | 1 . . . Watcher 3 | . 3 . . Swarmer 9 | . 6 3 . Grunt 10 | . 9 1 . Assembled 6 | . . . 6 Best Kill Streak 3 | 2 3 3 3 Combat Bots Only 3 | . 3 3 3 Max Kills in Single Turn 3 | 1 1 2 3 Gunslinging . | . . . . Exploded 3 | . . 2 3 Melee . | . . . . Uniques/NPCs Destroyed 2 | . . . 2 EX-DEC (-10/Exiles) EX-HEX (-10/Exiles) Combat | -11 -10 -10 -10 -------- Run | Scr Mat Min Exi Damage Taken 1510 | . 479 28 1003 Core 259 | . 30 8 221 Absorbed by Shields . | . . . . Core Remaining (%) 100 | 100 . . . Volleys Fired 98 | 10 47 5 36 Largest 2 | 2 2 2 2 Hottest 70 | 40 70 40 63 Shots Fired 193 | 20 94 8 71 Gun 188 | 20 94 6 68 Cannon . | . . . . Launcher 5 | . . 2 3 Special . | . . . . Kinetic 167 | 20 73 6 68 Thermal 21 | . 21 . . Explosive 5 | . . 2 3 Electromagnetic . | . . . . Robot Hit Streak 45 | 4 43 45 32 Robot Miss Streak 2 | 2 2 2 1 Penetration Max . | . . . . Secondary Targets . | . . . . Shots Hit Robots 155 | 12 74 4 65 Core Hits 65 | 4 35 5 21 Critical Hits . | . . . . Critical Kills . | . . . . Critical Parts Destroyed . | . . . . Melee Attacks . | . . . . Impact . | . . . . Slashing . | . . . . Piercing . | . . . . Sneak Attacks . | . . . . Combat Hostiles . | . . . . Follow-up Attacks . | . . . . Damage Inflicted 2578 | 148 1009 214 1207 Guns 1948 | 148 992 40 768 Cannons . | . . . . Explosions 604 | . . 165 439 Melee . | . . . . Ramming 26 | . 17 9 . Kinetic 1728 | 148 772 40 768 Thermal 220 | . 220 . . Explosive 604 | . . 165 439 Electromagnetic . | . . . . Impact . | . . . . Slashing . | . . . . Piercing . | . . . . Highest Corruption . | . . . . Average Corruption . | . . . . Corruption Purged . | . . . . Overload Shots . | . . . . Overflow Damage 23 | . . 17 6 Projectiles . | . . . . Explosions 23 | . . 17 6 Melee . | . . . . Knockbacks . | . . . . Impact . | . . . . Kinetic . | . . . . Secondary . | . . . . Self-Inflicted Damage . | . . . . Shots . | . . . . Rammed 3 | . 1 2 . Targets Rammed 3 | . 1 2 . Kicked . | . . . . Crushed . | . . . . Highest Temperature 99 | 6 99 . 9 Average Temperature 25 | 6 26 . 6 Received Heat Transfer 228 | . 228 . . Siege Activations . | . . . . Robots Corrupted . | . . . . Combat Hostiles . | . . . . Parts Fried . | . . . . Impact Corruptions . | . . . . Robots Melted . | . . . . Combat Hostiles . | . . . . Parts Melted 1 | . 1 . . Heat Transferred 629 | . 629 . . Parts Sabotaged . | . . . . Parts Stolen . | . . . . Parts Stripped . | . . . . Power Chain Reactions . | . . . . Missiles Intercepted . | . . . . Alert | -11 -10 -10 -10 ------- Run | Scr Mat Min Exi Peak Influence 195 | 15 195 130 . Initial 70 | . 9 70 . Average 88 | 6 106 69 . Maximum Alert Level . | . . . . Low Security (%) 100 | 100 100 100 . Level 1 . | . . . . Level 2 . | . . . . Level 3 . | . . . . Level 4 . | . . . . Level 5 . | . . . . High Security . | . . . . Max Security . | . . . . Squads Dispatched 2 | . 2 . . Investigation 2 | . 2 . . Extermination . | . . . . Reinforcement . | . . . . Assault . | . . . . Garrison . | . . . . Intercept . | . . . . Construction Impeded . | . . . . Haulers Reinforced . | . . . . Stealth | -11 -10 -10 -10 --------- Run | Scr Mat Min Exi Distress Signals 1 | . 1 . . Communications Jammed . | . . . . Distress Signals . | . . . . Times Spotted 33 | . 23 5 5 Peak Tracking Total 6 | . 3 2 6 Tactical Retreats 3 | . 3 . . Traps | -11 -10 -10 -10 ------- Run | Scr Mat Min Exi Traps Triggered . | . . . . Indirectly . | . . . . Trap Hack Attempts . | . . . . Triggered . | . . . . Disarmed . | . . . . Reprogrammed . | . . . . Reused . | . . . . Traps Extracted . | . . . . Installed . | . . . . Triggered . | . . . . Machines | -11 -10 -10 -10 ---------- Run | Scr Mat Min Exi Machines Disabled 5 | . . . 5 Max in Single Turn 2 | . . . 2 Machines Sabotaged . | . . . . Garrisons Compromised . | . . . . Overloaded Fab Kills . | . . . . Fab Network Shutdowns . | . . . . Hacking | -11 -10 -10 -10 --------- Run | Scr Mat Min Exi Machines Accessed 13 | . 11 . 2 Terminals 8 | . 8 . . Fabricators . | . . . . Repair Stations 1 | . 1 . . Recycling Units 2 | . 2 . . Scanalyzers . | . . . . Garrison Access . | . . . . Total Hacks 39 | . 37 . 2 Successful 23 | . 21 . 2 Failed 15 | . 15 . . Catastrophic 2 | . 2 . . Database Lockouts 1 | . 1 . . Manual 21 | . 20 . 1 Terminals 33 | . 33 . . Fabricators . | . . . . Repair Stations 2 | . 2 . . Recycling Units 2 | . 2 . . Scanalyzers . | . . . . Garrison Access . | . . . . Terminal Hacks 17 | . 15 . 2 Record 1 | . . . 1 Robot Analysis 3 | . 3 . . Prototype ID Bank 5 | . 5 . . Branch Access Points 1 | . 1 . . Terminal Index 1 | . 1 . . Alert Level 1 | . 1 . . Locate Traps 2 | . 2 . . Registered Components 1 | . 1 . . Registered Prototypes 1 | . 1 . . EX-Prototype ID Bank 1 | . . . 1 Fabricator Hacks . | . . . . Repair Station Hacks 2 | . 2 . . Scan Component 1 | . 1 . . Repair 1 | . 1 . . Recycling Unit Hacks . | . . . . Scanalyzer . | . . . . Garrison Access Hacks . | . . . . Unauthorized Hacks 4 | . 4 . . Terminals 2 | . 2 . . Botnet 1 | . 1 . . Disrupt 1 | . 1 . . Fabricators . | . . . . Repair Stations . | . . . . Recycling Units 2 | . 2 . . Tunnel 2 | . 2 . . Scanalyzers . | . . . . Garrison Access . | . . . . Data Cores Recovered . | . . . . Used . | . . . . Hacking Detections 8 | . 8 . . Full Trace Events . | . . . . Feedback Events . | . . . . Feedback Blocked . | . . . . Robot Schematics Acquired . | . . . . Robots Built . | . . . . Matter . | . . . . Time . | . . . . Total Robot Build Rating . | . . . . Part Schematics Acquired . | . . . . Parts Built . | . . . . Matter . | . . . . Time . | . . . . Total Part Build Rating . | . . . . Parts Repaired 1 | . 1 . . Time 26 | . 26 . . Parts Recycled . | . . . . Recycled Matter . | . . . . Retrieved Matter . | . . . . Retrieved Components . | . . . . Parts Scanalyzed . | . . . . Part Schematics Acquired . | . . . . Parts Damaged . | . . . . Bothacking | -11 -10 -10 -10 ------------ Run | Scr Mat Min Exi Used RIF Installer . | . . . . Robots Hacked . | . . . . Non-combat . | . . . . Combat . | . . . . Robot Hacks Applied . | . . . . Relay Couplers Released . | . . . . Robots Rewired . | . . . . Allies Hacked . | . . . . Hacks Repelled . | . . . . Allies | -11 -10 -10 -10 -------- Run | Scr Mat Min Exi Total Allies 3 | . . 3 . Largest Group 3 | . . 3 3 Highest-Rated Group 40 | . . 40 40 Highest-Rated Ally 16 | . . 16 16 Total Orders 3 | . . . 3 STAY 3 | . . . 3 Ally Attacks 74 | . . 14 60 Total Damage 687 | . . 172 515 Kills 5 | . . 1 4 Allies Corrupted . | . . . . Allies Melted . | . . . . Turrets Deployed 2 | . . . 2 Intel | -11 -10 -10 -10 ------- Run | Scr Mat Min Exi Robot Analysis Total 3 | . 3 . . Derelict Logs Recovered . | . . . . Drone Launches . | . . . . Drone Recoveries . | . . . . Exploration | -11 -10 -10 -10 ------------- Run | Scr Mat Min Exi Turns Passed 3835 | 83 1462 1032 1258 Spaces Moved 1889 | 40 675 558 616 Core . | . . . . Treads 1840 | . 666 558 616 Legs 49 | 40 9 . . Wheels . | . . . . Hover . | . . . . Flight . | . . . . Fastest Speed 120 | 120 120 180 180 Average Speed 176 | 120 172 180 180 Slowest Speed 180 | 120 180 180 180 Overloaded Moves . | . . . . Propulsion Burnouts . | . . . . Robots Hopped . | . . . . Cave-ins Triggered . | . . . . Exploration Rate (%) 66 | 3 99 95 68 Regions Visited 3 Branch Regions 2 Pre-discovered Areas 4 | . 2 1 1 Known Exits Taken 1 | . 1 . . Unknown Exits Taken 2 | 1 . 1 . Scrap Searched 1 | . . 1 . Spaces Dug . | . . . . Terrain Destroyed 31 | . . 15 16 Melee . | . . . . Projectile . | . . . . AOE 31 | . . 15 16 Terrain Rammed . | . . . . Walls Destroyed . | . . . . Machines Disabled . | . . . . Actions | -11 -10 -10 -10 --------- Run | Scr Mat Min Exi Total 2215 | 54 884 576 701 Wait 130 | 4 113 6 7 Move 1886 | 39 674 557 616 Hop . | . . . . Pick Up 43 | . 25 2 16 Fast Attach 4 | 1 3 . . Attach 10 | . 4 1 5 Detach 1 | . 1 . . Swap 9 | . 3 2 4 Drop 31 | . 13 1 17 Fire 98 | 10 47 5 36 Melee . | . . . . Ram . | . . . . Kick . | . . . . Crush 3 | . 1 2 . Escape Stasis . | . . . . Rewire . | . . . . Trap . | . . . . Miscellaneous . | . . . . Route ------- -11/Scrapyard -10/Materials (discovered 4 exits: [*Mat x3] / *Min) -10/Mines (discovered 3 exits: [*Mat x2] / *Exi) -10/Exiles (discovered 1 exit: [*Min]) History --------- Turn | Location | Event 22 | -11/Scrapyard | Discovered new exit (range 2) 84 | -11/Scrapyard | Entered Materials 142 | -10/Materials | Identified exit to Mines 142 | -10/Materials | Central database locked down 192 | -10/Materials | Discovered new exit (range 10) 309 | -10/Materials | Build established: Mutant 859 | -10/Materials | Discovered new exit (range 16) 1036 | -10/Materials | Build established: Hauler-Mutant 1113 | -10/Materials | Repaired Lgt. Treads 1196 | -10/Materials | Discovered new exit (range 13) 1546 | -10/Materials | Entered Mines 1603 | -10/Mines | Found a damaged Exp. Sensor Array with a note attached 1607 | -10/Mines | Found Prototype Device 1622 | -10/Mines | Received a Rocket Launcher from a helpful Derelict 1719 | -10/Mines | Assisted by bots powering up and referring to "LRC-V3" 1852 | -10/Mines | Deemed a non-threat by the Exiles lab entrance 1852 | -10/Mines | Discovered new exit (range 5) 1983 | -10/Mines | Discovered new exit (range 8) 2306 | -10/Mines | Discovered new exit (range 13) 2395 | -10/Mines | Learned location of Storage (-8) 2578 | -10/Mines | Entered Exiles 2578 | -10/Exiles | Accompanied by 3 allies 2605 | -10/Exiles | Discovered new exit (range 15) 2623 | -10/Exiles | Met 8R-AWN 2694 | -10/Exiles | Met EX-HEX 2775 | -10/Exiles | Met EX-DEC 2804 | -10/Exiles | Learned location of Zion (-6) 2925 | -10/Exiles | Met EX-BIN 2950 | -10/Exiles | Aligned with FarCom system 2952 | -10/Exiles | Given EX-Vault access code 2993 | -10/Exiles | Opened EX-Vault 3001 | -10/Exiles | Found Lightpack 2.0 3005 | -10/Exiles | Found Deploy-a-Sentry 3008 | -10/Exiles | Found Deploy-a-Sentry 3011 | -10/Exiles | Found Deploy-a-Sentry 3046 | -10/Exiles | Warned to stay clear of 0b10 Research branches 3270 | -10/Exiles | DAS Turret deployed 3272 | -10/Exiles | DAS Turret deployed 3719 | -10/Exiles | Attacked by the Exiles 3722 | -10/Exiles | Allies destroyed EX-DEC 3725 | -10/Exiles | Allies destroyed EX-HEX 3752 | -10/Exiles | Core integrity fell below 50% 3800 | -10/Exiles | Lost 4 parts (1p2n1w) 3820 | -10/Exiles | Core integrity fell below 20% 3836 | -10/Exiles | Destroyed by 8R-AWN with 8R-AWN's Boregun Last Messages --------------- 03781_ The unstable cave ceiling collapses. 03781_ Penetrated by HV Slug. 03783_ The unstable cave ceiling collapses. 03785_ HV Slug penetrates Wall. 03790_ Penetrated by HV Slug. 03794_ HV Slug penetrates Trooper 1b. 03794_ Trooper 1b suffers critical hit. 03794_ HV Slug penetrates Wall. 03798_ Penetrated by HV Slug. 03807_ Lgt. Nuclear Core destroyed. 03811_ Penetrated by HV Slug. 03819_ HV Slug penetrates Wall. 03824_ Penetrated by HV Slug. 03824_ Lgt. Treads destroyed. 03824_ Penetrated by HV Slug. 03824_ Critical hit. 03824_ Assault Rifle destroyed. 03828_ Penetrated by HV Slug. 03832_ HV Slug penetrates Machine. 03836_ Penetrated by HV Slug. Map ----- +----------------------------------------------------+ | """#???????????????????????????????????? | | """#???????????????????????????????????? | | """#???????????????????????????????????? | | """#???????????????????????????????????? | | """"???????????????????????????????????? | | """#???????????????????????????????????? | | "X" """"???????????????????????????????????? | | """ #???????????????????????????????????? | | """""""""#???????????????????????????????????? | | ###########???????????????????????????????????? | | #?????????????????????????????????????????????? | | #?????????????????????????????????????????????? | | ##????????????????????????????????????????????? | | ##???###########?????????????????????????????? | | #####"""" """"##????????????????????????????? | | " "" """"##???????????????????????????? | | "" " #???????????????????????????? | | """#???????????????????????????? | | a"#???????????#####???????????? | | "##?????????##" #???????????? | | "###???????#" #???????????? | | " ""#??????##" ##??????????? | | """ "#?##?### ###????????# | | ####""" =# #?# ########## | | ???##""" ! !!;;### #""""## | | ????#"""" =%!%!@;## | | ???##"" ! =%!g ## | | ####"""" #### | | #""" ""#?#"""""#### | | "" # ""##?#######??#### | | ######??????????????### | | ##?????????????????????? | | " ##??????????????????????? | | "" "" #???????????????????????? | | ##""" " " ""# % ##???????????????????????? | | ######""" """# ????????????????????????? | | #????###""""### # ## # ????????????????????????? | | ####???######??###### #????????????????????????? | | "!#????????????????###?????????????????????????? | | !#????????????????????????????????????????????? | | "#????????????????????????????????????????????? | | ""!"#????????????????????????????????????????????? | | #####????????????????????????????????????????????? | | ?????????????????????????????????????????????????? | | ?????????????????????????????????????????????????? | | ?????????????????????????????????????????????????? | | ?????????????????????????????????????????????????? | | ?????????????????????????????????????????????????? | | ?????????????????????????????????????????????????? | | ?????????????????????????????????????????????????? | +----------------------------------------------------+ Best States ------------- Heat Dissipation 25 Energy Generation 14 Energy Capacity 160 Matter Stores 300 Matter Capacity 300 Sight Range 16 Terrain Scan Range 16 Terrain Scan Density 10 Core Shielding 20 Evasion (%) 40 Recoil Reduction 2 Item Schematics ----------------- None Robot Schematics ------------------ None Fabricated ------------ Nothing Alien Tech Used ----------------- None Achievements -------------- None Challenges ------------ None Game ------ Seed TacticalRocketKatana Manual? 0 Play Time 00:21:42 Cumulative 763.0 hours Start 2020.10.14 @ 11:16:02 End 2020.10.14 @ 11:37:04 Sessions 1 Manual Loads 0 Difficulty Rogue Special Mode None Game No. 485 Rogue 485 Adventurer 0 Explorer 0 Win Type - Total 112 Types 76/7/8/10/5/1/4/0/1 Lore% 96 Gallery% 94 Achievement% 81 Wizard Run 0 Options --------- ASCII 0 Keyboard 0 Movement Numpad Keybinds 0 Fullscreen 2 Font 18/SmallcapsGlow Map View 76x50 Tactical HUD 1 Map Filters NONE Filters NONE Steam 1 RUN: 2bbe6efb-db87-4bf0-b0bc-27adfa0d8ffd